bitfinex-derivatives/quotes_ETHF0:USTF0_20241230
["timestamp","ask_amount","ask_price","bid_price","bid_amount"]
[1735554573628,0.4455,3424.7,3424.6,2.62485428]
[1735554579831,0.4455,3424.7,3424.6,5.83265428]
[1735554582035,0.4455,3424.7,3424.6,3.50031]
[1735554582235,0.738,3424.7,3424.6,3.50031]
[1735554583133,0.893,3424.7,3424.6,3.50031]
[1735554583335,1.33188379,3424.7,3424.6,3.50031]
[1735554584739,0.893,3424.7,3424.6,3.50031]
[1735554585640,0.893,3424.7,3424.6,0.29251]
[1735554589843,3.1920958,3424.7,3424.6,0.29251]
[1735554592247,5.07312294,3424.7,3424.5,3.50031]
[1735554592445,5.07312294,3424.7,3424.6,0.29251]
[1735554592756,4.78061294,3424.7,3424.6,0.29251]
[1735554593750,4.34174204,3424.7,3424.6,0.29251]
[1735554594350,4.63424204,3424.7,3424.6,0.29251]
[1735554595148,1.6243709,3424.7,3424.6,0.29251]
[1735554595342,1.3318709,3424.7,3424.6,0.29251]
[1735554596148,0.893,3424.7,3424.6,0.29251]
[1735554597547,1.3318709,3424.7,3424.6,0.29251]
[1735554598249,1.6244009,3424.7,3424.6,0.29251]
[1735554598452,1.3318709,3424.7,3424.6,0.29251]
[1735554600152,6.19600751,3424.7,3424.6,0.29254]
[1735554600747,5.90346751,3424.7,3424.6,0.29254]
[1735554601556,6.19599751,3424.7,3424.6,0.29254]
[1735554601853,5.90346751,3424.7,3424.6,0.29254]
[1735554602254,6.19599751,3424.7,3424.6,0.29254]
[1735554602455,1.3318709,3424.7,3424.6,0.29254]
[1735554603757,1.6244009,3424.7,3424.6,0.29254]
[1735554604059,1.3318709,3424.7,3424.6,0.29254]
[1735554604364,1.6244009,3424.7,3424.6,0.29254]
[1735554604956,1.3318709,3424.7,3424.6,0.29254]
[1735554606254,5.90346751,3424.7,3424.6,0.29254]
[1735554611859,6.19599751,3424.7,3424.6,0.29254]
[1735554612065,5.90346751,3424.7,3424.6,0.29254]
[1735554612659,1.3318709,3424.7,3424.6,0.29254]
[1735554613966,0.893,3424.7,3424.6,0.29254]
[1735554615169,1.91826537,3424.7,3424.4,1.159]
[1735554615462,0.29255,3424.5,3424.4,1.45156]
[1735554615862,0.29254,3424.6,3424.5,0.29254]
[1735554616061,6.39464734,3424.7,3424.6,0.29254]
[1735554616569,6.92084787,3424.7,3424.6,0.29254]
[1735554617769,6.18081787,3424.7,3424.6,1.31780537]
[1735554618868,0.88441217,3424.7,3424.6,1.31780537]
[1735554620162,0.43891217,3424.7,3424.6,1.31780537]
[1735554621867,3.44866297,3424.7,3424.6,1.31780537]
[1735554622369,5.03673212,3424.9,3424.6,7.05053074]
[1735554622570,4.39993004,3425.1,3425.0,0.29251]
[1735554622873,19.91104643,3425.9,3425.0,0.29251]
[1735554622874,19.91104643,3425.9,3425.4,0.29247]
[1735554623070,19.91104643,3425.9,3425.4,5.68453537]
[1735554623766,0.74829726,3425.8,3425.4,4.65927]
[1735554623965,1.17891726,3425.6,3425.4,4.65927]
[1735554624160,0.88641442,3425.6,3425.4,4.3668]
[1735554624371,0.88641442,3425.6,3425.4,5.75808138]
[1735554624372,0.74827442,3425.5,3425.4,5.75808138]
[1735554624763,0.45570436,3425.5,3425.4,5.75808138]
[1735554624970,0.45570436,3425.5,3425.4,6.05055138]
[1735554625470,0.45570436,3425.5,3425.4,1.45147]
[1735554626772,0.74816436,3425.5,3425.4,1.159]
[1735554627172,0.74832822,3425.5,3425.4,1.159]
[1735554627471,0.45586822,3425.5,3425.4,1.159]
[1735554627671,0.88646822,3425.6,3425.5,0.29246]
[1735554627867,0.4306,3425.6,3425.5,0.29246]
[1735554628267,0.4306,3425.6,3425.4,1.159]
[1735554628479,0.72306,3425.6,3425.4,1.45147]
[1735554629570,0.4306,3425.6,3425.5,0.29246]
[1735554633577,0.29247,3425.5,3425.3,1.45147]
[1735554633775,0.4358,3425.4,3425.1,4.89157138]
[1735554633976,0.29249,3425.2,3425.1,3.91408138]
[1735554634279,0.29249,3425.2,3425.1,3.22908138]
[1735554635276,0.2925,3425.1,3424.9,0.29251]
[1735554635477,0.89602027,3425.3,3424.7,1.159]
[1735554635677,0.29249,3425.2,3425.0,0.2925]
[1735554636272,0.89602027,3425.3,3424.7,1.159]
[1735554636475,0.29249,3425.2,3425.0,0.2925]
[1735554636978,0.29249,3425.2,3425.1,0.2925]
[1735554637371,0.29249,3425.2,3425.0,0.2925]
[1735554637572,0.4327,3425.1,3425.0,0.2925]
[1735554637871,0.7252,3425.1,3424.9,0.29251]
[1735554638273,0.4327,3425.1,3424.7,1.159]
[1735554638674,0.4327,3425.1,3425.0,0.29251]
[1735554639179,0.88803316,3425.1,3425.0,0.29251]
[1735554639582,0.88809949,3425.1,3425.0,0.29251]
[1735554640082,0.88814056,3425.1,3425.0,0.29251]
[1735554640281,1.18064056,3425.1,3424.9,0.29251]
[1735554640675,0.29251,3425.0,3424.8,0.29252]
[1735554640871,3.18389201,3425.1,3424.7,1.159]
[1735554641076,3.47639201,3425.1,3424.7,1.159]
[1735554641279,3.18389201,3425.1,3425.0,0.29251]
[1735554642182,0.88814056,3425.1,3425.0,0.29251]
[1735554642686,0.88824114,3425.1,3425.0,0.29251]
[1735554643382,0.4327,3425.1,3425.0,0.29251]
[1735554644082,0.4327,3425.1,3424.7,1.159]
[1735554644278,0.4555893,3425.0,3424.9,0.29251]
[1735554645180,2.75156741,3425.0,3424.9,0.29251]
[1735554645380,5.95936741,3425.0,3424.4,6.8859359]
[1735554645575,0.29253,3424.8,3424.6,0.29253]
[1735554645778,0.9061,3424.7,3424.6,0.29253]
[1735554645989,1.3339,3424.7,3424.6,0.29253]
[1735554646283,1.78967248,3424.7,3424.6,0.29253]
[1735554646482,2.08220248,3424.7,3424.6,0.29253]
[1735554646978,2.08213289,3424.7,3424.6,0.29253]
[1735554647584,0.29255,3424.6,3424.2,11.2527359]
[1735554647788,0.29254,3424.6,3424.5,0.29255]
[1735554647986,4.378121,3424.7,3424.5,0.29255]
[1735554648180,0.29255,3424.6,3424.4,0.29255]
[1735554649682,4.08556667,3424.7,3424.2,4.3668]
[1735554649890,4.37809667,3424.7,3424.6,0.29254]
[1735554650786,4.37810667,3424.7,3424.5,0.29254]
[1735554650992,4.08556667,3424.7,3424.2,3.2078]
[1735554651188,0.29257,3424.3,3424.1,7.1785159]
[1735554651392,1.2954,3424.2,3424.1,7.1785159]
[1735554652180,1.58797,3424.2,3424.1,6.8859359]
[1735554652485,1.58797,3424.2,3423.9,9.45319332]
[1735554652486,4.5032,3424.2,3423.9,6.8859359]
[1735554652692,0.29259,3424.0,3423.9,6.8859359]
[1735554654290,0.29259,3424.0,3423.6,0.29262]
[1735554654291,0.29261,3423.8,3423.6,0.29262]
[1735554654490,0.4115,3423.7,3423.6,0.29262]
[1735554654790,0.8548,3423.7,3423.6,0.29262]
[1735554660593,3.2078,3423.8,3423.7,0.29262]
[1735554667006,3.2078,3423.8,3423.2,0.12869921]
[1735554667310,3.2078,3423.8,3423.0,12.42513091]
[1735554667311,0.29264,3423.5,3423.3,1.45164]
[1735554667503,0.4558,3423.4,3423.0,10.0937359]
[1735554667810,0.29267,3423.1,3423.0,10.0937359]
[1735554668011,0.29267,3423.1,3423.0,3.2078]
[1735554668706,5.53919501,3423.3,3422.8,6.8859359]
[1735554669009,0.29269,3422.9,3422.8,6.8859359]
[1735554670004,3.66233096,3423.3,3422.8,6.8859359]
[1735554670206,0.29266,3423.2,3422.6,0.4455]
[1735554670404,0.4153,3423.1,3422.6,0.4455]
[1735554670610,0.4153,3423.1,3423.0,0.29268]
[1735554671208,0.4153,3423.1,3422.6,0.4455]
[1735554671209,0.29268,3423.0,3422.8,0.29269]
[1735554671410,0.29268,3423.0,3422.5,4.3668]
[1735554671610,0.4153,3423.1,3422.5,4.3668]
[1735554671806,0.29268,3423.0,3422.9,0.29268]
[1735554672209,0.29268,3423.0,3422.8,0.29269]
[1735554674209,0.71719,3422.9,3422.8,0.29269]
[1735554674511,0.4245,3422.9,3422.2,0.9065]
[1735554674717,0.29273,3422.5,3422.3,0.29273]
[1735554675016,0.423,3422.8,3422.3,0.29273]
[1735554675017,0.4463,3422.4,3422.3,0.29273]
[1735554675214,0.8822,3422.4,3422.3,0.29273]
[1735554676510,0.8822,3422.4,3422.1,3.2078]
[1735554676713,0.8822,3422.4,3422.0,0.29276]
[1735554676902,0.29275,3422.2,3422.0,0.29276]
[1735554677104,0.4342,3422.1,3422.0,0.29276]
[1735554677813,0.4342,3422.1,3421.8,1.159]
[1735554678022,0.4342,3422.1,3422.0,0.29276]
[1735554679106,0.4342,3422.1,3421.9,0.29276]
[1735554679310,0.4342,3422.1,3421.8,1.159]
[1735554679509,0.4342,3422.1,3422.0,0.29276]
[1735554684411,0.29277,3422.0,3421.9,0.29277]
[1735554684718,0.72696,3422.1,3421.9,0.29277]
[1735554685219,0.72696,3422.1,3422.0,0.29276]
[1735554686514,0.4342,3422.1,3421.7,3.2078]
[1735554686715,0.29277,3422.0,3421.8,0.29277]
[1735554687109,0.4519,3421.9,3421.8,0.29277]
[1735554687315,0.4519,3421.9,3421.5,0.2928]
[1735554687522,0.2928,3421.6,3421.4,0.29281]
[1735554687718,0.4506,3421.5,3421.4,0.29281]
[1735554688115,0.4506,3421.5,3420.9,4.0581]
[1735554688322,0.29281,3421.4,3421.2,0.29283]
[1735554688523,0.29281,3421.4,3421.0,0.29285]
[1735554688826,0.4519,3421.3,3421.2,0.29282]
[1735554689318,0.4519,3421.3,3420.6,0.4326]
[1735554689319,3.6597,3421.3,3420.6,0.4326]
[1735554689522,0.29287,3420.8,3420.5,0.29289]
[1735554689723,0.8717,3420.7,3420.5,0.29289]
[1735554689925,0.29289,3420.5,3420.3,0.2929]
[1735554690118,0.4262,3420.4,3420.2,8.3388459]
[1735554690327,0.4262,3420.4,3420.2,8.0459359]
[1735554690516,0.4262,3420.4,3420.3,0.29291]
[1735554693723,0.8717,3420.7,3420.3,0.29291]
[1735554693924,0.8717,3420.7,3420.6,0.29288]
[1735554694223,9.80686344,3422.8,3420.6,0.29288]
[1735554694224,3.66086089,3421.3,3420.6,2.33139501]
[1735554694425,3.2078,3421.3,3421.2,0.29283]
[1735554695916,3.2078,3421.3,3420.7,0.8622]
[1735554696125,5.53919501,3421.3,3420.7,0.29287]
[1735554696327,0.29286,3420.8,3420.7,0.29287]
[1735554696625,0.29286,3420.8,3420.6,0.29288]
[1735554696823,0.29289,3420.5,3420.2,3.2078]
[1735554697021,0.29289,3420.6,3420.5,0.29289]
[1735554697724,3.2078,3420.9,3420.2,3.2078]
[1735554697921,0.29287,3420.8,3420.6,0.29288]
[1735554698222,1.3016,3420.8,3420.6,0.29288]
[1735554698423,0.29287,3420.7,3420.6,0.29288]
[1735554699425,0.29288,3420.7,3420.5,0.29288]
[1735554699622,0.29287,3420.7,3420.5,0.29288]
[1735554699814,1.3016,3420.8,3420.5,0.29288]
[1735554700019,0.29288,3420.6,3420.5,0.29288]
[1735554700727,1.59447,3420.8,3420.6,0.29288]
[1735554701027,0.29287,3420.7,3420.6,0.29288]
[1735554701226,1.59447,3420.8,3420.7,0.29287]
[1735554701723,0.29288,3420.7,3420.6,0.29288]
[1735554703019,1.3016,3420.8,3420.1,4.3678]
[1735554703327,1.59447,3420.8,3420.7,0.29287]
[1735554704427,1.3016,3420.8,3420.7,0.29287]
[1735554704627,1.59446,3420.8,3420.7,0.29287]
[1735554706127,1.3016,3420.8,3420.1,4.3678]
[1735554706428,1.59447,3420.8,3420.7,0.29287]
[1735554706922,0.29288,3420.7,3420.6,0.29288]
[1735554707328,1.59447,3420.8,3420.7,0.29287]
[1735554707924,0.29289,3420.6,3420.5,0.29289]
[1735554708218,1.75548959,3420.8,3420.0,0.4173]
[1735554708428,0.29292,3420.2,3420.1,0.29292]
[1735554708828,0.73611,3420.3,3420.2,0.29292]
[1735554710335,0.4432,3420.3,3420.2,0.29292]
[1735554710739,3.2078,3420.4,3420.0,0.4173]
[1735554711037,3.50067,3420.8,3420.6,0.29288]
[1735554711337,0.29288,3420.7,3420.5,0.29289]
[1735554711833,0.29288,3420.7,3420.6,0.29288]
[1735554712035,3.2078,3420.8,3420.7,0.29287]
[1735554714332,3.50066,3420.8,3420.7,0.29287]
[1735554714537,3.95463987,3420.8,3420.7,0.29287]
[1735554715230,3.50066,3420.8,3420.7,0.29287]
[1735554715436,3.2078,3420.8,3420.3,0.4437]
[1735554715735,0.45494387,3420.7,3420.3,0.4437]
[1735554716037,0.74782387,3420.7,3420.6,0.29288]
[1735554716338,0.74781387,3420.7,3420.6,0.29288]
[1735554717135,3.50067,3420.8,3420.7,0.29287]
[1735554718038,3.2078,3420.8,3420.3,0.4203]
[1735554718238,0.45603094,3420.6,3420.3,0.4203]
[1735554718540,0.45603094,3420.6,3420.5,0.29289]
[1735554719229,0.29288,3420.7,3420.6,0.29288]
[1735554720043,3.2078,3420.8,3420.3,0.4203]
[1735554720236,3.50067,3420.8,3420.7,0.29287]
[1735554720736,3.2078,3420.8,3420.3,0.4203]
[1735554720936,0.45635511,3420.5,3420.3,0.4203]
[1735554721240,0.29288,3420.7,3420.6,0.29288]
[1735554723233,0.29289,3420.6,3420.5,0.29288]
[1735554723440,0.74299,3420.6,3420.5,0.29288]
[1735554726648,0.2929,3420.5,3420.4,0.29289]
[1735554730233,0.74299,3420.6,3420.5,0.29289]
[1735554732735,0.2929,3420.5,3420.4,0.2929]
[1735554733647,0.74939533,3420.5,3420.4,0.2929]
[1735554733846,0.45649533,3420.5,3420.4,0.2929]
[1735554735951,0.45649533,3420.5,3420.4,11.59582334]
[1735554736251,0.45668289,3420.5,3420.4,11.59582334]
[1735554737550,2.7501614,3420.5,3420.4,11.59582334]
[1735554739338,2.75022128,3420.5,3420.4,11.59582334]
[1735554740040,2.75022128,3420.5,3420.4,4.70988744]
[1735554740444,2.29347851,3420.5,3420.4,4.70988744]
[1735554740643,2.75023247,3420.5,3420.4,4.70988744]
[1735554740841,2.75012695,3420.5,3420.4,4.70988744]
[1735554741047,3.04301695,3420.5,3420.4,4.70988744]
[1735554741252,2.75012695,3420.5,3420.4,4.70988744]
[1735554741645,2.29347851,3420.5,3420.4,4.70988744]
[1735554741845,2.75011728,3420.5,3420.4,4.70988744]
[1735554742543,2.74996151,3420.5,3420.4,4.70988744]
[1735554742940,3.88196846,3420.5,3420.4,4.70988744]
[1735554744547,0.456483,3420.5,3420.4,13.87048076]
[1735554745150,0.749373,3420.5,3420.4,13.87048076]
[1735554745742,0.74937223,3420.5,3420.4,13.87048076]
[1735554745946,0.74937223,3420.5,3420.4,13.57758076]
[1735554746148,0.29289,3420.5,3420.4,13.57758076]
[1735554747143,0.73232771,3420.5,3420.4,11.334716]
[1735554750156,0.73232771,3420.5,3420.4,11.627616]
[1735554750755,1.18854635,3420.5,3420.4,11.627616]
[1735554751054,0.73232771,3420.5,3420.4,11.627616]
[1735554751354,4.18118198,3420.5,3420.4,11.334716]
[1735554752259,4.18118198,3420.5,3420.4,11.627616]
[1735554752653,0.73232771,3420.5,3420.4,11.627616]
[1735554758663,0.73232771,3420.5,3420.4,11.334716]
[1735554758960,5.73232771,3420.5,3420.4,9.774716]
[1735554759354,6.76015485,3420.5,3420.4,9.774716]
[1735554759763,10.81406148,3420.5,3419.9,4.61207803]
[1735554759955,5.55638428,3420.0,3419.9,2.55557803]
[1735554760160,5.55638428,3420.0,3419.9,1.18457803]
[1735554760361,0.29294,3419.9,3419.8,6.91772856]
[1735554761059,0.74809608,3419.9,3419.8,6.91772856]
[1735554761461,0.29298,3419.4,3419.3,6.91772856]
[1735554761662,3.50078,3419.4,3419.3,7.78412856]
[1735554762958,7.3817132,3419.4,3419.3,0.8664]
[1735554764263,5.79346047,3419.4,3419.3,0.8664]
[1735554766053,2.29268047,3419.4,3419.3,1.15939]
[1735554766557,2.29268047,3419.4,3419.3,1.59679]
[1735554766763,3.44149549,3419.6,3419.3,1.59679]
[1735554766764,2.29268047,3419.6,3419.5,0.29298]
[1735554770265,5.50048047,3419.7,3419.3,1.3038]
[1735554770465,5.50048047,3419.7,3419.6,0.29297]
[1735554771261,2.29268047,3419.7,3419.6,0.29297]
[1735554772071,2.29268047,3419.8,3419.7,0.29296]
[1735554773069,1.60708047,3419.8,3419.7,0.29296]
[1735554773472,3.2078,3420.1,3420.0,0.29293]
[1735554775169,3.50072,3420.1,3420.0,0.29293]
[1735554775370,0.29293,3420.0,3419.9,0.29294]
[1735554776877,0.29293,3420.0,3419.8,0.29294]
[1735554777172,0.29293,3420.0,3419.9,0.29294]
[1735554778866,3.91543,3420.1,3419.6,1.16]
[1735554779071,0.29293,3420.0,3419.9,0.29294]
[1735554779976,0.29294,3419.9,3419.8,0.29295]
[1735554780970,0.45481671,3420.0,3419.3,1.3038]
[1735554781176,0.45481671,3420.0,3419.4,0.29298]
[1735554781177,0.29298,3419.5,3419.4,0.29298]
[1735554781374,0.29298,3419.4,3419.3,1.3038]
[1735554781771,0.29298,3419.4,3419.3,0.8664]
[1735554782281,5.5478843,3419.5,3419.0,0.8558]
[1735554782470,0.29301,3419.1,3419.0,0.8558]
[1735554782668,0.29303,3418.9,3418.8,6.91772856]
[1735554783680,0.4477,3419.0,3418.7,3.2078]
[1735554783870,0.29304,3418.8,3418.7,3.50084]
[1735554784367,0.29304,3418.8,3418.7,3.2078]
[1735554791877,0.29305,3418.6,3418.5,1.14886]
[1735554792280,0.29305,3418.6,3418.5,0.8558]
[1735554792884,0.29305,3418.6,3418.1,0.2931]
[1735554792885,2.3400843,3418.6,3418.1,0.2931]
[1735554793182,0.29309,3418.2,3418.1,0.4244]
[1735554793383,0.4565,3418.5,3418.3,0.29307]
[1735554793384,0.29307,3418.4,3418.3,0.29307]
[1735554793976,0.4565,3418.5,3418.1,0.4244]
[1735554794181,0.29306,3418.5,3418.4,0.29307]
[1735554795385,0.4289,3418.7,3418.1,0.4244]
[1735554795685,0.29307,3418.5,3418.3,0.29307]
[1735554796078,0.4289,3418.7,3418.1,0.4244]
[1735554796283,0.29307,3418.4,3418.3,0.29307]
[1735554798280,0.29307,3418.4,3418.1,0.4244]
[1735554798485,0.29309,3418.2,3418.1,0.71749]
[1735554798674,0.4289,3418.7,3418.1,0.4244]
[1735554799386,0.29309,3418.2,3418.1,0.4244]
[1735554800481,0.29309,3418.2,3418.1,0.7175]
[1735554800987,5.0,3418.4,3418.1,0.4244]
[1735554801383,5.0,3418.4,3418.3,0.29308]
[1735554801881,3.6286,3418.4,3418.3,0.29308]
[1735554802477,1.5712,3418.4,3418.3,5.29308]
[1735554802683,3.44149549,3419.1,3419.0,0.29302]
[1735554802985,3.44149549,3419.1,3419.0,1.45402]
[1735554803383,3.2078,3419.4,3419.0,1.161]
[1735554803582,3.2078,3419.4,3419.3,0.29299]
[1735554806485,0.29301,3419.2,3418.9,1.161]
[1735554806787,0.29301,3419.2,3419.0,0.29302]
[1735554806989,1.19159,3419.3,3419.1,0.293]
[1735554807185,0.8986,3419.3,3419.2,0.293]
[1735554808090,3.50078,3419.4,3419.2,0.293]
[1735554808291,3.2078,3419.4,3418.9,1.161]
[1735554808493,3.2078,3419.4,3419.3,0.29299]
[1735554808793,3.2078,3419.4,3418.9,1.161]
[1735554808994,3.50079,3419.4,3419.2,0.29299]
[1735554809186,3.2078,3419.4,3418.9,1.161]
[1735554809387,3.2078,3419.4,3419.3,0.29299]
[1735554809687,3.2078,3419.4,3418.9,1.161]
[1735554809987,3.50079,3419.4,3418.9,1.161]
[1735554810183,3.50079,3419.4,3419.3,0.29299]
[1735554810583,3.2078,3419.4,3419.3,0.29299]
[1735554814781,4.2078,3419.4,3419.3,0.29299]
[1735554815187,4.50078,3419.4,3419.3,0.29299]
[1735554815387,0.29301,3419.1,3419.0,0.29301]
[1735554815988,0.29303,3418.9,3418.8,1.45403]
[1735554816895,0.8632,3419.0,3418.7,3.2078]
[1735554816896,0.29303,3418.8,3418.7,3.2078]
[1735554817102,0.29303,3418.8,3418.7,3.50084]
[1735554817394,0.29303,3418.8,3418.7,3.2078]
[1735554821088,0.29303,3418.8,3418.7,3.50084]
[1735554823894,0.29303,3418.9,3418.8,0.29303]
[1735554824300,0.29303,3418.8,3418.7,3.50084]
[1735554824501,0.29303,3418.9,3418.7,3.50084]
[1735554824696,0.29303,3418.8,3418.7,3.50084]
[1735554824902,0.8632,3419.0,3418.9,0.29303]
[1735554825997,1.15622,3419.0,3418.9,0.29303]
[1735554827813,0.8632,3419.0,3418.9,0.29303]
[1735554828704,0.8632,3419.0,3418.4,3.2078]
[1735554829008,0.29304,3418.8,3418.7,0.29304]
[1735554829614,0.8632,3419.0,3418.4,3.2078]
[1735554829808,0.29305,3418.7,3418.6,0.29305]
[1735554833210,3.44149549,3418.9,3418.4,3.2078]
[1735554833416,0.29304,3418.8,3418.7,0.29304]
[1735554833810,3.44149549,3418.9,3418.4,3.2078]
[1735554834121,4.30469549,3419.0,3418.4,3.2078]
[1735554834309,0.29305,3418.6,3418.5,0.29306]
[1735554835612,5.78157979,3418.9,3418.4,3.2078]
[1735554835817,0.71946,3418.5,3418.4,3.50087]
[1735554836017,0.71946,3418.5,3418.4,0.29307]
[1735554836211,0.71946,3418.5,3418.0,7.35712856]
[1735554836212,0.29307,3418.4,3418.3,0.29307]
[1735554836423,1.14267,3418.4,3418.3,0.29307]
[1735554836610,0.2931,3418.0,3417.9,7.21083856]
[1735554836807,0.2931,3418.0,3417.9,6.91772856]
[1735554838317,2.3400843,3418.3,3417.8,0.29312]
[1735554838318,0.29311,3417.9,3417.8,0.29312]
[1735554838513,0.71001,3417.9,3417.8,0.29312]
[1735554838823,0.4169,3417.9,3417.8,0.29312]
[1735554839323,0.71001,3417.9,3417.8,0.29312]
[1735554841220,0.29312,3417.8,3417.7,0.29312]
[1735554841417,0.4169,3417.9,3417.8,0.29312]
[1735554842017,0.71001,3417.9,3417.8,0.29312]
[1735554843021,0.4169,3417.9,3417.8,0.29312]
[1735554843219,0.71001,3417.9,3417.8,0.29312]
[1735554843420,0.4169,3417.9,3417.8,0.29312]
[1735554845617,1.0,3418.0,3417.9,0.29311]
[1735554845823,1.0,3418.0,3417.9,2.6331943]
[1735554846327,0.3153,3418.0,3417.9,2.6331943]
[1735554847720,0.3153,3418.0,3417.9,3.0497943]
[1735554848323,0.3153,3418.0,3417.9,0.70971]
[1735554849519,0.3153,3418.0,3417.9,0.29311]
[1735554852615,0.3153,3418.0,3417.9,5.8409943]
[1735554853221,0.3153,3418.0,3417.9,3.50091]
[1735554853823,0.3153,3418.0,3417.9,7.61289584]
[1735554855019,0.3153,3418.0,3417.9,3.50091]
[1735554855228,0.3153,3418.0,3417.9,5.8409943]
[1735554855621,0.4416,3418.6,3417.9,12.12334909]
[1735554855825,0.4416,3418.6,3418.5,0.29306]
[1735554859830,0.4416,3418.6,3418.1,6.91772856]
[1735554860032,0.4416,3418.6,3418.5,0.29306]
[1735554860735,0.73465,3418.6,3418.5,0.29306]
[1735554862834,0.29306,3418.5,3418.4,0.29307]
[1735554864138,0.4416,3418.6,3418.1,1.161]
[1735554864327,0.4553,3418.4,3418.1,1.161]
[1735554864527,0.4553,3418.4,3418.3,0.29308]
[1735554881850,0.4553,3418.4,3418.3,4.8995397]
[1735554886351,0.4553,3418.4,3418.3,9.02052785]
[1735554887451,0.4553,3418.4,3418.3,0.29308]
[1735554887844,0.74837,3418.4,3418.3,0.29308]
[1735554888051,1.77739284,3418.4,3418.3,0.29308]
[1735554888355,1.77739284,3418.4,3418.3,4.8995397]
[1735554888551,0.4553,3418.4,3418.3,4.8995397]
[1735554888952,0.74837,3418.4,3418.3,4.8995397]
[1735554892652,0.74837,3418.4,3418.3,0.29308]
[1735554892863,4.18986549,3418.4,3418.3,4.41764889]
[1735554893256,3.89679549,3418.4,3418.3,4.41764889]
[1735554896458,2.75490662,3418.4,3418.3,4.41764889]
[1735554899262,4.33648333,3418.4,3418.3,4.41764889]
[1735554899564,4.33648333,3418.4,3418.3,11.33775303]
[1735554900961,3.89679549,3418.4,3418.3,11.33775303]
[1735554902360,4.33648333,3418.4,3418.3,11.33775303]
[1735554906057,0.89498784,3418.4,3418.3,11.33775303]
[1735554907163,0.74837,3418.4,3418.3,11.33775303]
[1735554907366,0.4553,3418.4,3418.3,11.33775303]
[1735554908365,1.18805784,3418.4,3418.3,11.04467303]
[1735554909763,5.77807496,3418.4,3418.3,4.61452711]
[1735554910771,6.8070978,3418.4,3418.3,4.90760711]
[1735554910970,6.5140278,3418.4,3418.3,4.90760711]
[1735554911166,6.5140278,3418.4,3418.3,0.29308]
[1735554911364,6.8070978,3418.4,3418.3,0.29308]
[1735554912464,2.21708068,3418.4,3418.3,4.41955973]
[1735554912870,1.92401068,3418.4,3418.3,4.41955973]
[1735554918368,2.21708068,3418.4,3418.3,4.41955973]
[1735554918574,5.42488068,3418.4,3418.3,3.73395973]
[1735554918769,5.42488068,3418.4,3418.3,0.80275973]
[1735554919166,8.87475454,3418.4,3418.3,0.80275973]
[1735554920579,0.2931,3418.0,3417.9,4.90618534]
[1735554920775,1.32212284,3418.0,3417.9,4.90618534]
[1735554921171,1.32212284,3418.0,3417.9,4.61307534]
[1735554921678,0.29311,3417.9,3417.8,4.61307534]
[1735554921977,1.57491,3417.9,3417.8,4.61307534]
[1735554922972,1.2818,3417.9,3417.8,4.90619534]
[1735554923170,1.72148784,3417.9,3417.8,0.29312]
[1735554923367,2.01459784,3417.9,3417.8,0.29312]
[1735554923876,0.29312,3417.8,3417.7,0.29312]
[1735554924282,0.29312,3417.8,3417.7,4.90619534]
[1735554924283,1.32214284,3417.8,3417.7,4.90619534]
[1735554924877,1.32214284,3417.8,3417.7,4.61307534]
[1735554925078,1.02902284,3417.8,3417.6,4.61307534]
[1735554925482,1.32214284,3417.8,3417.6,4.61307534]
[1735554925677,0.29313,3417.7,3417.6,4.90620534]
[1735554925876,0.29313,3417.7,3417.6,4.61307534]
[1735554926683,2.5897463,3417.7,3417.6,4.61307534]
[1735554928179,2.2966163,3417.7,3417.4,4.61307534]
[1735554928381,0.29314,3417.5,3417.4,4.61307534]
[1735554928783,0.74434,3417.5,3417.4,4.61307534]
[1735554929583,0.29316,3417.4,3417.2,0.74787]
[1735554929883,1.44762284,3417.4,3417.2,0.4547]
[1735554930083,0.29316,3417.3,3417.2,0.4547]
[1735554931688,4.19026952,3417.4,3417.1,3.2078]
[1735554931888,1.32219284,3417.2,3417.1,3.2078]
[1735554936895,4.23682284,3417.2,3416.8,0.7314]
[1735554937091,1.32221284,3417.0,3416.8,0.7314]
[1735554937592,1.32221284,3417.0,3416.9,0.2932]
[1735554938194,1.02902284,3417.0,3416.9,0.2932]
[1735554938502,0.4384,3417.1,3417.0,0.29319]
[1735554939693,1.02902284,3417.2,3417.1,0.29318]
[1735554940193,1.02902284,3417.2,3416.8,0.4382]
[1735554940393,1.02902284,3417.2,3416.5,7.82087534]
[1735554940394,1.02902284,3416.9,3416.5,4.61307534]
[1735554940595,3.50101,3416.7,3416.6,0.452]
[1735554941294,3.2078,3416.7,3416.4,5.06637534]
[1735554941493,1.02902284,3416.6,3416.5,0.29323]
[1735554942096,0.29323,3416.5,3416.4,5.06637534]
[1735554942295,1.02902284,3416.6,3416.4,0.4533]
[1735554942692,1.02902284,3416.6,3416.5,0.29323]
[1735554944290,1.02902284,3416.6,3416.3,0.452]
[1735554944592,1.02902284,3416.4,3416.3,0.74524]
[1735554945793,1.02902284,3416.4,3416.3,0.29324]
[1735554947589,0.29322,3416.6,3416.4,0.29323]
[1735554947795,1.02902284,3416.5,3416.4,0.29323]
[1735554948101,1.02902284,3416.5,3416.4,0.29324]
[1735554948305,0.29323,3416.6,3416.4,0.29324]
[1735554948495,0.29323,3416.6,3416.1,0.4167]
[1735554948800,0.29323,3416.6,3416.4,0.29323]
[1735554949602,5.55165489,3416.7,3416.1,0.4167]
[1735554949603,0.29326,3416.2,3416.1,0.4167]
[1735554950193,0.8983,3416.2,3415.9,0.4349]
[1735554950402,0.29326,3416.1,3415.9,0.72818]
[1735554950601,0.29326,3416.1,3416.0,0.29327]
[1735554951004,0.8983,3416.2,3415.9,0.4349]
[1735554951205,2.34385489,3416.6,3416.3,0.29324]
[1735554951206,0.29324,3416.5,3416.3,0.29324]
[1735554951398,0.29324,3416.5,3416.4,0.4513]
[1735554952291,0.29324,3416.5,3415.7,3.94105]